lending/lending_fUSD_20240110
["ID","MTS","AMOUNT","RATE_DAILY","PERIOD"]
[311012856,1704870263015,242.1048025,0.00022501,2]
[311012857,1704870263589,16739.78735962,0.00022501,2]
[311012858,1704870264008,270.38826598,0.00022501,2]
[311012859,1704870266184,2605.00040477,0.00022501,2]
[311012860,1704870267915,345.53730056,0.00022501,2]
[311012861,1704870268585,155.0,0.00022501,2]
[311012862,1704870268674,24308.12626099,0.00022501,2]
[311012863,1704870272247,155.0,0.00022501,2]
[311012864,1704870274605,4480.63733448,0.00022501,2]
[311012865,1704870274800,3323.78268181,0.00022501,2]
[311012866,1704870275964,1899.54398415,0.00022501,2]
[311012867,1704870275991,242.56828842,0.00022501,2]
[311012868,1704870276024,3039.7923389,0.00022501,2]
[311012869,1704870276697,3927.97706849,0.00022501,2]
[311012870,1704870277193,2616.11953545,0.00022501,2]
[311012871,1704870277271,155.0,0.00022501,2]
[311012872,1704870277730,3619.50520265,0.00022501,2]
[311012873,1704870278049,2942.76782523,0.00022501,2]
[311012874,1704870280545,155.0,0.00022501,2]
[311012875,1704870280653,155.0,0.00022501,2]
[311012876,1704870281121,522.98998751,0.00022501,2]
[311012877,1704870282176,220.70699301,0.00022501,2]
[311012878,1704870282510,158.54128598,0.00022501,2]
[311012879,1704870284242,1706.52624545,0.00022501,2]
[311012880,1704870285575,2267.55348713,0.00022501,2]
[311012881,1704870287388,220.06189485,0.00022501,2]
[311012882,1704870287701,527.38210729,0.00022501,2]
[311012883,1704870288776,155.0,0.00022501,2]
[311012884,1704870289367,386.39411499,0.00022501,2]
[311012885,1704870290646,361.12598513,0.00022501,2]
[311012890,1704870292393,417.43921408,0.00022501,2]
[311012891,1704870294990,2136.08960768,0.00022501,2]
[311012892,1704870296204,155.0,0.00022501,2]
[311012893,1704870296264,4619.20322978,0.00022501,2]
[311012894,1704870298471,542.04075646,0.00022501,2]
[311012895,1704870298970,190.72179871,0.00022501,2]
[311012896,1704870300453,515.53220912,0.00022501,2]
[311012897,1704870301416,866.58695818,0.00022501,2]
[311012898,1704870304392,3028.27293031,0.00022501,2]
[311012899,1704870306038,650.75415232,0.00022501,2]
[311012900,1704870310384,196.41686252,0.00022501,2]
[311012901,1704870313345,42935.03320706,0.00022501,2]
[311012902,1704870326995,623.57975566,0.00022076,2]
[311012903,1704870333757,155.33903215,0.0002,2]
[311012904,1704870337221,235.24352516,0.00022501,2]
[311012905,1704870346146,16739.78735962,0.00022501,2]
[311012906,1704870352448,522.98998751,0.00022501,2]
[311012907,1704870356311,155.18030999,0.00020696,2]
[311012908,1704870359598,235.52060626,0.00021846,2]
[311012909,1704870366778,561.72,0.00021819,2]
[311012910,1704870367701,446.84027118,0.00022501,2]
[311012911,1704870367904,220.06189485,0.00022501,2]
[311012912,1704870369104,3185.89838635,0.00022501,2]
[311012913,1704870372507,650.75415232,0.00022501,2]
[311012914,1704870375783,1426.83853958,0.00022501,2]
[311012915,1704870375985,155.0,0.00022501,2]
[311012916,1704870379313,155.34481245,0.00020696,2]
[311012917,1704870379914,234.00983924,0.00022501,2]
[311012918,1704870381767,446.53747346,0.00020466,2]
[311012919,1704870385623,234.44881315,0.00018397,2]
[311012920,1704870385933,3183.88361185,0.00022076,2]
[311012921,1704870386406,1602.33217424,0.00017477,2]
[311012922,1704870399842,403.26596329,0.00021191,2]
[311012923,1704870402184,320.99,0.00019917,2]
[311012924,1704870402421,320.99,0.00022181,2]
[311012925,1704870411433,559.65017112,0.00020466,2]
[311012926,1704870418159,155.0,0.0002,2]
[311012927,1704870422986,3197.150764,0.00022,2]
[311012928,1704870429604,292.80073035,0.00021846,2]
[311012929,1704870430217,429.58,0.0002183,2]
[311012930,1704870431285,283.79483104,0.00020466,2]
[311012931,1704870435258,360.66298011,0.00020466,2]
[311012932,1704870442681,446.73645241,0.00020468,2]
[311012933,1704870449087,361.9386835,0.00020466,2]
[311012934,1704870451275,532.55789459,0.00020466,2]
[311012935,1704870462000,620.96617796,0.00022076,2]
[311012936,1704870466849,533.85861177,0.00020466,2]
[311012937,1704870478700,158.98,0.00021809,2]
[311012938,1704870481312,-235.24352516,0.00022502,2]
[311012939,1704870489839,157.05,0.00022036,2]
[311012940,1704870502084,161.93429672,0.00022502,2]
[311012941,1704870502908,220.06189485,0.00022502,2]
[311012942,1704870506000,650.75415232,0.00022502,2]
[311012943,1704870517246,3185.21463735,0.00022076,2]
[311012944,1704870526879,42935.03320706,0.00022502,2]
[311012945,1704870527740,155.58474014,0.00020466,2]
[311012946,1704870527941,155.38829746,0.00020466,2]
[311012947,1704870531610,155.0,0.00020466,2]
[311012948,1704870548603,177.66502977,0.00022076,2]
[311012949,1704870558697,159.00662928,0.00022076,2]
[311012950,1704870559339,18937.12709548,0.00022076,2]
[311012965,1704870562802,155.41653751,0.00022076,2]
[311012968,1704870566011,155.27480816,0.00022076,2]
[311012969,1704870566999,1898.36158582,0.00022076,2]
[311012970,1704870568190,192.90231929,0.00020696,2]
[311012971,1704870575950,7442.48445764,0.00022076,2]
[311012972,1704870576366,15741.98016252,0.00022076,2]
[311012973,1704870579485,220.06189485,0.00022502,2]
[311012974,1704870583323,1588.206206,0.000372,30]
[311012975,1704870586103,650.75415232,0.00022502,2]
[311012976,1704870588160,150.0,0.00022,2]
[311012977,1704870590117,543.37000018,0.00022076,2]
[311012978,1704870591492,5183.28447778,0.00022076,2]
[311012979,1704870596536,381.04609834,0.00022502,2]
[311012980,1704870596966,227.82107926,0.00022502,2]
[311012981,1704870597379,42935.03320706,0.00022502,2]
[311012982,1704870597492,401.67001773,0.00021827,2]
[311012983,1704870597517,300.98577184,0.00022502,2]
[311012984,1704870597724,1765.38700583,0.00022502,2]
[311012989,1704870601986,1031.99438221,0.00022502,2]
[311012990,1704870605151,155.29467305,0.00022502,2]
[311012991,1704870612592,3181.81386302,0.00022502,2]
[311012992,1704870622775,282.58914518,0.00021156,2]
[311013013,1704870632030,-265.0000001,0.00022502,2]
[311013015,1704870632042,-2628.51434884,0.00022502,2]
[311013017,1704870632052,-155.21975072,0.00022502,2]
[311013019,1704870632061,-1035.17430673,0.00022502,2]
[311013021,1704870632072,-522.90175126,0.00022502,2]
[311013023,1704870632082,-155.40021674,0.00022502,2]
[311013025,1704870632091,-2325.40706643,0.00022507,2]
[311013026,1704870632101,-33330.41652738,0.00022507,2]
[311013027,1704870632110,-472.04985907,0.00022508,2]
[311013028,1704870632119,-232.58601557,0.00022508,2]
[311013029,1704870632128,-237.12856079,0.00022508,2]
[311013030,1704870632138,-157.60492848,0.00022508,2]
[311013031,1704870632147,-2000.0,0.00022508,2]
[311013032,1704870632156,-3849.91637634,0.00022508,2]
[311013033,1704870632166,-514.28664798,0.00022508,2]
[311013034,1704870632176,-523.86841998,0.00022508,2]
[311013035,1704870632185,-302.81777128,0.00022508,2]
[311013036,1704870632195,-217.23658877,0.00022508,2]
[311013037,1704870632204,-530.62921059,0.00022508,2]
[311013038,1704870632214,-2378.26802866,0.00022508,2]
[311013039,1704870632222,-1910.32149215,0.00022508,2]
[311013040,1704870632232,-1095.73521462,0.00022514,2]
[311013041,1704870632241,-168.92890094,0.00022559,2]
[311013042,1704870632250,-999.99,0.00022559,2]
[311013043,1704870632259,-519.8,0.00022559,2]
[311013044,1704870632268,-415.61195705,0.00022559,2]
[311013045,1704870632279,-254.08154295,0.00022559,2]
[311013046,1704870632288,-168.92890094,0.00022608,2]
[311013047,1704870632297,-325.8991306,0.00022608,2]
[311013048,1704870632324,-2713.77991897,0.00022608,2]
[311013049,1704870632350,-640.78237381,0.00022608,2]
[311013050,1704870632361,-912.52924596,0.00022608,2]
[311013051,1704870632372,-5669.05638351,0.00022608,2]
[311013053,1704870632395,-1298.19408647,0.00022608,2]
[311013057,1704870632430,-324.55703253,0.00022608,2]
[311013059,1704870632442,-6950.71965306,0.00022608,2]
[311013063,1704870632454,-541.24591888,0.00022608,2]
[311013066,1704870632465,-3060.50973781,0.00022608,2]
[311013082,1704870632609,-734.84098344,0.00022608,2]
[311013085,1704870632634,-3247.84142314,0.00022608,2]
[311013119,1704870638432,-155.26696628,0.00022502,2]
[311013120,1704870638441,-18793.30411182,0.00022608,2]
[311013121,1704870638451,-27444.61221928,0.00022652,2]
[311013122,1704870638460,-615.41,0.00022652,2]
[311013123,1704870638469,-168.92890094,0.00022656,2]
[311013125,1704870638479,-558.6581,0.00022657,2]
[311013127,1704870638488,-385.9407,0.00022664,2]
[311013129,1704870638497,-168.92890094,0.00022705,2]
[311013131,1704870638506,-157.05,0.00022727,2]
[311013133,1704870638516,-338.55890367,0.00022753,2]
[311013135,1704870638525,-168.92890094,0.00022754,2]
[311013137,1704870638534,-202.94800345,0.00022754,2]
[311013139,1704870638542,-6428.45607218,0.00022757,2]
[311013141,1704870638551,-696.68337901,0.00022759,2]
[311013142,1704870638560,-5270.32227151,0.00022759,2]
[311013144,1704870638571,-864.80144048,0.00022768,2]
[311013146,1704870638580,-246.16910552,0.00022768,2]
[311013148,1704870638590,-168.92890094,0.00022803,2]
[311013151,1704870638599,-429.58,0.00022809,2]
[311013152,1704870638609,-168.92890094,0.00022851,2]
[311013154,1704870638618,-361.34950035,0.00022899,2]
[311013156,1704870638627,-361.34950032,0.00022899,2]
[311013159,1704870638636,-361.34950032,0.000229,2]
[311013161,1704870638645,-1000.0,0.000229,2]
[311013162,1704870638655,-168.92890094,0.000229,2]
[311013164,1704870638664,-6808.28427055,0.000229,2]
[311013166,1704870638673,-412.60357908,0.000229,2]
[311013167,1704870638682,-184.77937278,0.000229,2]
[311013168,1704870638691,-235.47466617,0.000229,2]
[311013169,1704870638699,-348.99060259,0.000229,2]
[311013170,1704870638708,-960.69375037,0.000229,2]
[311013171,1704870638716,-187.54414069,0.000229,2]
[311013172,1704870638725,-215.0587201,0.00022973,2]
[311013173,1704870638734,-919.37495377,0.0002299,2]
[311013174,1704870638743,-393.99187694,0.0002299,2]
[311013175,1704870638751,-393.99187694,0.0002299,2]
[311013176,1704870638760,-2420.04838109,0.00022991,2]
[311013177,1704870638769,-698.15993328,0.00022995,2]
[311013178,1704870638778,-1059.15744315,0.00022996,2]
[311013179,1704870638786,-951.29019971,0.00022996,2]
[311013180,1704870638796,-1997.96376192,0.00022996,2]
[311013182,1704870638805,-155.75273262,0.00022996,2]
[311013184,1704870638816,-1619.82090544,0.00022996,2]
[311013186,1704870638826,-273.2410733,0.00022996,2]
[311013188,1704870638835,-155.49520958,0.00022996,2]
[311013190,1704870638844,-526.12843819,0.00022996,2]
[311013192,1704870638853,-485.5928344,0.00022996,2]
[311013194,1704870638863,-531.14690522,0.00022996,2]
[311013196,1704870638873,-421.29625111,0.00022996,2]
[311013198,1704870638884,-2142.86715622,0.00022996,2]
[311013200,1704870638895,-4615.0520465,0.00022996,2]
[311013202,1704870638904,-515.02640098,0.00022996,2]
[311013204,1704870638914,-543.89892255,0.00022996,2]
[311013205,1704870638925,-190.54307373,0.00022996,2]
[311013207,1704870638935,-214.99157807,0.00022996,2]
[311013209,1704870638944,-3026.29023819,0.00022996,2]
[311013211,1704870638954,-468.897554,0.00022996,2]
[311013213,1704870638964,-196.2393822,0.00022996,2]
[311013216,1704870638974,-10784.44037764,0.00022996,2]
[311013217,1704870638985,-522.15241919,0.00022996,2]
[311013220,1704870638995,-1425.63482222,0.00022996,2]
[311013222,1704870639005,-155.46639801,0.00022996,2]
[311013223,1704870639015,-234.81000391,0.00022996,2]
[311013226,1704870639024,-155.0,0.00022996,2]
[311013227,1704870639034,-235.00088367,0.00022996,2]
[311013229,1704870639043,-161.7736666,0.00022996,2]
[311013231,1704870639052,-220.06189485,0.00022996,2]
[311013233,1704870639061,-650.75415232,0.00022996,2]
[311013235,1704870639072,-162.09718404,0.00022996,2]
[311013238,1704870639081,-281.57424767,0.00022997,2]
[311013240,1704870639091,-10528.0364263,0.00022997,2]
[311013241,1704870639100,-22107.63424557,0.00022998,2]
[311013243,1704870639109,-1042.38109743,0.00022998,2]
[311013245,1704870639120,-248.3603035,0.00022998,2]
[311013247,1704870639130,-155.90591231,0.00022998,2]
[311013249,1704870639139,-182.7915784,0.00022998,2]
[311013251,1704870639148,-202.36293951,0.00022998,2]
[311013253,1704870639157,-155.42508523,0.00022998,2]
[311013255,1704870639166,-189.87188957,0.00022998,2]
[311013257,1704870639175,-202.34728046,0.00022998,2]
[311013260,1704870639185,-155.0,0.00022998,2]
[311013261,1704870639194,-156.03807741,0.00022998,2]
[311013264,1704870639203,-308.31194299,0.00022998,2]
[311013266,1704870639212,-269.41266569,0.00022998,2]
[311013267,1704870639222,-4260.73122971,0.00022998,2]
[311013269,1704870639231,-155.42012736,0.00022998,2]
[311013271,1704870639241,-155.0,0.00022998,2]
[311013273,1704870639250,-207.47505674,0.00022998,2]
[311013276,1704870639259,-1701.16863614,0.00022998,2]
[311013278,1704870639270,-169.15813973,0.00022998,2]
[311013280,1704870639280,-166.13203767,0.00022998,2]
[311013282,1704870639290,-155.0,0.00022998,2]
[311013284,1704870639300,-946.47123876,0.00022998,2]
[311013286,1704870639310,-325.48642263,0.00022998,2]
[311013287,1704870639321,-182.17402601,0.00022998,2]
[311013289,1704870639330,-1200.63953512,0.00022998,2]
[311013291,1704870639340,-400.0,0.00022998,2]
[311013293,1704870639351,-1043.80845818,0.00022998,2]
[311013296,1704870639361,-403.69410205,0.00022998,2]
[311013297,1704870639370,-202.36211742,0.00022998,2]
[311013300,1704870639380,-5683.96811853,0.00022998,2]
[311013301,1704870639390,-502.47580149,0.00022998,2]
[311013303,1704870639400,-9162.44479524,0.00022998,2]
[311013306,1704870639410,-264.81217308,0.00022998,2]
[311013307,1704870639421,-236.04447415,0.00022998,2]
[311013309,1704870639430,-13002.16292667,0.00022998,2]
[311013311,1704870639440,-363.25910941,0.00022998,2]
[311013313,1704870639450,-1942.11746351,0.00022998,2]
[311013315,1704870639460,-156.66166416,0.00022998,2]
[311013317,1704870639470,-241.0841561,0.00022998,2]
[311013319,1704870639480,-345.10475491,0.00022998,2]
[311013321,1704870639492,-3616.18859863,0.00022998,2]
[311013323,1704870639503,-155.44849245,0.00022998,2]
[311013325,1704870639515,-2538.24294825,0.00022998,2]
[311013327,1704870639526,-155.44896448,0.00022998,2]
[311013329,1704870639536,-3924.58864003,0.00022998,2]
[311013331,1704870639547,-915.5590402,0.00022998,2]
[311013333,1704870639559,-3342.86491334,0.00022998,2]
[311013335,1704870639575,-198.49468833,0.00022998,2]
[311013337,1704870639586,-2275.39800225,0.00022998,2]
[311013339,1704870639598,-220.50616281,0.00022998,2]
[311013341,1704870639608,-2208.42460315,0.00022998,2]
[311013343,1704870639619,-1489.50884178,0.00022998,2]
[311013345,1704870639628,-1704.91165561,0.00022998,2]
[311013347,1704870639639,-158.3955903,0.00022998,2]
[311013349,1704870639649,-2940.28734835,0.00022998,2]
[311013351,1704870639659,-10590.19882632,0.00022998,2]
[311013353,1704870639669,-1771.9623319,0.00022998,2]
[311013355,1704870639678,-155.42075614,0.00022999,2]
[311013357,1704870639687,-2621.14603155,0.00022999,2]
[311013359,1704870639698,-1850.25831893,0.00022999,2]
[311013361,1704870639707,-155.22968628,0.00022999,2]
[311013363,1704870639717,-150.0,0.00022999,2]
[311013365,1704870639726,-150.0,0.00022999,2]
[311013367,1704870639735,-1476559.03966533,0.00023,2]
[311013373,1704870639779,-774461.6142016,0.00023,2]
[311013375,1704870639791,-111872.92476986,0.00023,2]
[311013377,1704870639800,-106272.01377485,0.00023,2]
[311013379,1704870639810,-165.11,0.00023289,2]
[311013381,1704870639824,-162.85,0.00023333,2]
[311013383,1704870639833,-157.05,0.00023418,2]
[311013385,1704870639843,-6808.28427055,0.00023648,2]
[311013387,1704870639852,-429.58,0.00023787,2]
[311013389,1704870639861,-200.80356946,0.00024,2]
[311013391,1704870639870,-157.05,0.00024109,2]
[311013393,1704870639879,-6808.28427055,0.00024397,2]
[311013395,1704870639888,-165.11,0.00024398,2]
[311013397,1704870639898,-320.99,0.00024445,2]
[311013399,1704870639907,-284.67,0.00024498,2]
[311013401,1704870639916,-561.72,0.00024546,2]
[311013403,1704870639925,-284.67,0.00024627,2]
[311013405,1704870639934,-250.0,0.00024658,2]
[311013407,1704870639943,-412.60357904,0.00024684,2]
[311013409,1704870639952,-284.67,0.00024756,2]
[311013411,1704870639960,-429.58,0.00024766,2]
[311013413,1704870639970,-157.05,0.000248,2]
[311013415,1704870639979,-284.67,0.00024885,2]
[311013417,1704870639988,-376.57181299,0.00025,2]
[311013419,1704870639997,-302.92406179,0.00025,2]
[311013421,1704870640006,-1016.9503095,0.00025,2]
[311013423,1704870640015,-1246.60618459,0.00025,2]
[311013425,1704870640024,-284.67,0.00025014,2]
[311013427,1704870640033,-284.67,0.00025143,2]
[311013429,1704870640043,-6808.28427055,0.00025145,2]
[311013431,1704870640051,-284.67,0.00025272,2]
[311013433,1704870640060,-284.67,0.00025401,2]
[311013435,1704870640071,-157.05,0.00025491,2]
[311013437,1704870640081,-165.11,0.00025507,2]
[311013439,1704870640089,-162.85,0.00025528,2]
[311013441,1704870640098,-284.67,0.00025529,2]
[311013443,1704870640108,-728.00554382,0.00025614,2]
[311013445,1704870640116,-284.67,0.00025658,2]
[311013447,1704870640126,-429.58,0.00025744,2]
[311013449,1704870640135,-284.67,0.00025787,2]
[311013451,1704870640144,-6808.28427055,0.00025893,2]
[311013453,1704870640153,-284.67,0.00025916,2]
[311013455,1704870640162,-284.67,0.00026045,2]
[311013457,1704870640171,-150.0,0.00026079,2]
[311013459,1704870640180,-284.67,0.00026174,2]
[311013461,1704870640189,-157.05,0.00026182,2]
[311013463,1704870640198,-284.67,0.00026303,2]
[311013465,1704870640207,-284.67,0.00026432,2]
[311013467,1704870640216,-412.60357904,0.00026468,2]
[311013469,1704870640225,-284.67,0.00026561,2]
[311013471,1704870640235,-183.96,0.00026575,2]
[311013473,1704870640244,-6976.9,0.00026575,2]
[311013475,1704870640254,-165.11,0.00026616,2]
[311013477,1704870640263,-6808.28427055,0.00026642,2]
[311013479,1704870640272,-207.0,0.00026657,2]
[311013481,1704870640282,-284.67,0.0002669,2]
[311013483,1704870640291,-320.99,0.00026709,2]
[311013485,1704870640302,-429.58,0.00026723,2]
[311013487,1704870640313,-284.67,0.00026819,2]
[311013489,1704870640323,-348.99060259,0.00026879,2]
[311013491,1704870640333,-960.69375036,0.00026879,2]
[311013493,1704870640342,-284.67,0.00026948,2]
[311013495,1704870640351,-42101.0,0.000272,2]
[311013497,1704870640360,-561.72,0.00027273,2]
[311013499,1704870640369,-4010.0,0.000273,2]
[311013501,1704870640378,-324.41905764,0.000273,13]
[311013503,1704870640387,-393.99187694,0.00027387,2]
[311013505,1704870640397,-6808.28427055,0.0002739,2]
[311013508,1704870640406,-250.0,0.00027397,2]
[311013511,1704870640415,-37120.16222378,0.00027397,4]
[311013513,1704870640427,-4419.15633148,0.00027397,4]
[311013518,1704870640464,-81182.68144474,0.00027397,4]
[311013520,1704870640474,-250.0,0.000274,2]
[311013522,1704870640483,-429.58,0.00027701,2]
[311013524,1704870640493,-162.85,0.00027722,2]
[311013526,1704870640502,-6808.28427055,0.00028139,2]
[311013528,1704870640512,-412.60357904,0.00028252,2]
[311013530,1704870640521,-324.41905761,0.00028258,14]
[311013532,1704870640530,-2693.66661002,0.00028627,2]
[311013534,1704870640539,-429.58,0.0002868,2]
[311013536,1704870640548,-6808.28427055,0.00028887,2]
[311013538,1704870640557,-320.99,0.00028973,2]
[311013540,1704870640568,-2269.0,0.00029017,2]
[311013542,1704870640578,-1028.0,0.00029017,2]
[311013544,1704870640588,-318.0,0.00029194,5]
[311013546,1704870640597,-324.41905761,0.00029216,16]
[311013548,1704870640607,-19095.86780733,0.000295,2]
[311013550,1704870640616,-6808.28427055,0.00029635,2]
[311013551,1704870640625,-429.58,0.00029658,2]
[311013553,1704870640634,-196.65640957,0.000298,2]
[311013555,1704870640643,-223.10158547,0.00029833,4]
[311013557,1704870640653,-356.11908645,0.000299,2]
[311013559,1704870640662,-356.11908633,0.000299,2]
[311013561,1704870640671,-356.11908633,0.000299,2]
[311013563,1704870640681,-356.11908633,0.000299,2]
[311013565,1704870640690,-356.11908633,0.000299,2]
[311013568,1704870640699,-356.11908633,0.000299,2]
[311013570,1704870640709,-356.11908633,0.000299,2]
[311013572,1704870640718,-356.11908633,0.000299,2]
[311013574,1704870640728,-356.11908633,0.000299,2]
[311013576,1704870640736,-356.11908633,0.000299,2]
[311013578,1704870640746,-356.11908633,0.000299,2]
[311013580,1704870640755,-356.11908633,0.000299,2]
[311013582,1704870640764,-356.11908633,0.000299,2]
[311013584,1704870640773,-356.11908633,0.000299,2]
[311013586,1704870640782,-356.11908633,0.000299,2]
[311013588,1704870640790,-356.11908633,0.000299,2]
[311013589,1704870640799,-356.11908633,0.000299,2]
[311013591,1704870640808,-356.11908633,0.000299,2]
[311013593,1704870640818,-356.11908633,0.000299,2]
[311013595,1704870640827,-356.11908633,0.000299,2]
[311013598,1704870640837,-557.6768839,0.00029983,2]
[311013599,1704870640846,-2363.17547187,0.0003,2]
[311013601,1704870640855,-155.0,0.0003,2]
[311013604,1704870640864,-3640.50022538,0.0003,4]
[311013605,1704870640873,-19999.999999,0.0003,2]
[311013608,1704870640882,-1000.0,0.0003,2]
[311013610,1704870640891,-3000.0,0.0003,2]
[311013612,1704870640900,-156.16627133,0.0003,2]
[311013613,1704870640910,-561.72,0.00030001,2]
[311013615,1704870640919,-150.0,0.00030032,2]
[311013617,1704870640928,-412.60357904,0.00030036,2]
[311013619,1704870640937,-150.0,0.00030046,2]
[311013621,1704870640946,-3000.0,0.0003005,2]
[311013623,1704870640955,-150.0,0.00030133,2]
[311013625,1704870640965,-247.14833827,0.00030134,4]
[311013627,1704870640974,-2302.03358731,0.00030134,4]
[311013629,1704870640983,-524.93911482,0.00030134,4]
[311013631,1704870640992,-155.0,0.00030134,4]
[311013633,1704870641001,-672.7371005,0.00030134,10]
[311013635,1704870641011,-259.64397016,0.00030134,4]
[311013638,1704870641021,-1886.4927337,0.00030134,4]
[311013640,1704870641032,-2895.90399733,0.00030134,4]
[311013641,1704870641041,-212.12363683,0.00030134,4]
[311013642,1704870641050,-381.8129294,0.00030134,4]
[311013643,1704870641059,-399.70065492,0.00030134,4]
[311013644,1704870641070,-841.40945132,0.00030134,4]
[311013645,1704870641079,-278.75448039,0.00030134,4]
[311013646,1704870641089,-283.02422268,0.00030134,4]
[311013647,1704870641099,-2774.81020011,0.00030134,4]
[311013648,1704870641109,-757.38163137,0.00030134,4]
[311013649,1704870641118,-765.16043303,0.00030134,2]
[311013650,1704870641127,-310.99595963,0.00030134,4]
[311013652,1704870641137,-5322.5786516,0.00030134,4]
[311013654,1704870641147,-163.63015791,0.00030134,4]
[311013656,1704870641156,-430.5877192,0.00030134,4]
[311013658,1704870641165,-5090.9238642,0.00030134,4]
[311013660,1704870641174,-161.44781603,0.00030134,4]
[311013662,1704870641184,-376.11195413,0.00030134,4]
[311013664,1704870641193,-2567.57604839,0.00030135,4]
[311013666,1704870641202,-18975.85297703,0.00030135,2]
[311013668,1704870641211,-500.0,0.00030136,2]
[311013670,1704870641220,-503.79480889,0.00030136,2]
[311013672,1704870641229,-500.0,0.00030136,2]
[311013674,1704870641238,-505.39511514,0.00030136,2]
[311013676,1704870641247,-500.0,0.00030136,2]
[311013678,1704870641256,-500.0,0.00030136,2]
[311013680,1704870641266,-500.0,0.00030136,2]
[311013682,1704870641275,-500.0,0.00030136,2]
[311013684,1704870641284,-548.48815625,0.00030136,2]
[311013686,1704870641294,-500.0,0.00030136,2]
[311013688,1704870641303,-500.0,0.00030136,2]
[311013690,1704870641313,-500.0,0.00030136,2]
[311013692,1704870641322,-500.0,0.00030136,2]
[311013694,1704870641332,-500.0,0.00030136,2]
[311013696,1704870641341,-500.0,0.00030136,2]
[311013698,1704870641352,-557.83845327,0.00030136,2]
[311013700,1704870641361,-509.30000564,0.00030136,2]
[311013702,1704870641369,-500.0,0.00030136,2]
[311013704,1704870641378,-360.24031628,0.00030136,2]
[311013706,1704870641388,-471.40999208,0.00030136,2]
[311013708,1704870641397,-500.0,0.00030136,2]
[311013710,1704870641406,-500.0,0.00030136,2]
[311013712,1704870641415,-500.0,0.00030136,2]
[311013714,1704870641425,-524.90759092,0.00030136,2]
[311013716,1704870641434,-500.0,0.00030136,2]
[311013718,1704870641444,-500.0,0.00030136,2]
[311013720,1704870641454,-500.0,0.00030136,2]
[311013721,1704870641463,-500.0,0.00030136,2]
[311013723,1704870641473,-500.0,0.00030136,2]
[311013725,1704870641482,-500.0,0.00030136,2]
[311013728,1704870641491,-500.0,0.00030136,2]
[311013730,1704870641502,-500.0,0.00030136,2]
[311013731,1704870641511,-500.0,0.00030136,2]
[311013733,1704870641521,-500.0,0.00030136,2]
[311013735,1704870641530,-500.0,0.00030136,2]
[311013737,1704870641540,-500.0,0.00030136,2]
[311013740,1704870641549,-500.0,0.00030136,2]
[311013742,1704870641559,-502.06801947,0.00030136,2]
[311013743,1704870641569,-500.0,0.00030136,2]
[311013746,1704870641579,-500.0,0.00030136,2]
[311013748,1704870641588,-500.0,0.00030136,2]
[311013750,1704870641597,-500.0,0.00030136,2]
[311013752,1704870641607,-501.07042127,0.00030136,2]
[311013754,1704870641616,-500.0,0.00030136,2]
[311013756,1704870641625,-500.0,0.00030136,2]
[311013759,1704870641644,-500.0,0.00030136,2]
[311013761,1704870641657,-500.0,0.00030136,2]
[311013763,1704870641666,-517.96454904,0.00030136,2]
[311013765,1704870641676,-500.0,0.00030136,2]
[311013767,1704870641685,-585.0,0.00030136,2]
[311013769,1704870641695,-500.0,0.00030136,2]
[311013771,1704870641704,-504.27741399,0.00030136,2]
[311013773,1704870641714,-315.03704349,0.00030136,2]
[311013775,1704870641723,-171.84896937,0.00030136,2]
[311013777,1704870641733,-500.0,0.00030136,2]
[311013779,1704870641742,-500.0,0.00030136,2]
[311013781,1704870641751,-592.12898633,0.00030136,2]
[311013783,1704870641761,-500.0,0.00030136,2]
[311013785,1704870641770,-500.0,0.00030136,2]
[311013787,1704870641780,-498.67176139,0.00030136,2]
[311013789,1704870641790,-500.0,0.00030136,2]
[311013791,1704870641799,-500.0,0.00030136,2]